bitfinex-derivatives/quotes_ETHF0:USTF0_20250518
["timestamp","ask_amount","ask_price","bid_price","bid_amount"]
[1747603678102,3.058,2418.2,2418.1,1.68166806]
[1747603678304,12.326,2418.2,2418.1,1.68166806]
[1747603678603,3.058,2418.2,2418.1,1.68166806]
[1747603678803,12.325,2418.2,2418.1,1.68166806]
[1747603679104,12.325,2418.2,2418.1,0.34466806]
[1747603679403,13.6596,2418.2,2418.1,0.34466806]
[1747603679905,12.325,2418.2,2418.1,0.34466806]
[1747603680202,12.325,2418.2,2418.1,1.68366806]
[1747603680397,4.3926,2418.2,2418.1,1.68366806]
[1747603680603,13.6576,2418.2,2418.1,1.68366806]
[1747603680795,3.058,2418.2,2418.1,2.51035806]
[1747603681800,3.058,2418.2,2418.1,1.68366806]
[1747603682005,3.058,2418.2,2418.1,2.51035806]
[1747603682211,1.3368,2418.3,2418.1,1.68366806]
[1747603682599,0.7675,2418.2,2418.1,1.68366806]
[1747603682905,0.7675,2418.2,2418.1,1.339]
[1747603683101,3.8255,2418.2,2418.1,1.68263718]
[1747603683899,3.8255,2418.2,2418.1,2.50932718]
[1747603685104,3.8255,2418.2,2418.1,0.34363718]
[1747603685506,4.6028,2418.2,2418.1,0.34363718]
[1747603688011,3.058,2418.2,2418.1,1.17032718]
[1747603689316,1.3094,2418.2,2418.1,1.17032718]
[1747603693020,10.0574,2418.3,2418.2,0.82666]
[1747603693222,9.251,2418.3,2418.2,2.99666]
[1747603693415,9.251,2418.3,2418.2,4.18539718]
[1747603694024,1.3037,2418.5,2418.2,3.35873718]
[1747603694217,9.25,2418.4,2418.3,0.8266]
[1747603694520,4.3617,2418.5,2418.4,0.82659]
[1747603694720,12.308,2418.5,2418.4,1.17022718]
[1747603695718,12.308,2418.5,2418.4,0.34363718]
[1747603695719,13.13456,2418.5,2418.4,0.34363718]
[1747603695916,16.34236,2418.5,2418.4,0.34363718]
[1747603699424,15.5158,2418.5,2418.4,0.34363718]
[1747603700726,6.2658,2418.5,2418.4,0.34363718]
[1747603700925,15.5078,2418.5,2418.4,0.34363718]
[1747603703325,15.5048,2418.5,2418.4,0.34363718]
[1747603707128,12.4468,2418.5,2418.4,0.34363718]
[1747603707428,3.2078,2418.5,2418.4,0.34363718]
[1747603707625,12.4418,2418.5,2418.4,0.34363718]
[1747603708331,12.4408,2418.5,2418.4,1.17022718]
[1747603708627,3.2078,2418.5,2418.4,1.17022718]
[1747603708827,11.3607,2418.6,2418.5,0.82656]
[1747603709021,3.058,2418.9,2418.8,0.82646]
[1747603709221,0.00548716,2419.0,2418.9,0.82642]
[1747603709728,5.72039586,2419.3,2419.2,0.82632]
[1747603710129,5.72039586,2419.3,2419.2,1.16995718]
[1747603710329,0.8051,2419.5,2419.3,0.82628]
[1747603710532,0.8051,2419.5,2419.2,2.55673718]
[1747603710831,2.1159,2419.5,2419.3,1.73043718]
[1747603711023,2.1159,2419.5,2419.4,0.34363718]
[1747603711229,0.8051,2419.5,2419.4,0.34363718]
[1747603712232,3.2078,2419.7,2419.4,1.16988718]
[1747603712433,3.2078,2419.7,2419.4,0.34363718]
[1747603712633,3.2078,2419.7,2419.5,0.34363718]
[1747603713026,3.2078,2419.7,2419.5,1.14643718]
[1747603713728,3.2078,2419.7,2419.6,0.34363718]
[1747603713927,4.03395,2419.7,2419.6,0.34363718]
[1747603715128,7.09195,2419.7,2419.6,0.34363718]
[1747603715633,0.82622,2419.5,2419.1,10.6305]
[1747603715835,0.82622,2419.5,2419.2,0.34342927]
[1747603716037,6.2658,2419.7,2419.2,0.34342927]
[1747603716231,3.88425,2419.5,2419.3,0.34342927]
[1747603716633,3.88425,2419.5,2419.4,0.34342927]
[1747603717032,3.058,2419.5,2419.4,0.34342927]
[1747603717232,0.82622,2419.5,2419.4,0.34342927]
[1747603717534,1.6189,2419.6,2419.4,0.34342927]
[1747603718336,4.6769,2419.6,2419.5,0.34342927]
[1747603718532,3.8842,2419.6,2419.5,0.34342927]
[1747603718732,4.6988,2419.6,2419.5,0.34342927]
[1747603719336,3.8726,2419.6,2419.5,0.34342927]
[1747603719633,13.91578,2419.6,2419.5,0.34342927]
[1747603720239,13.0896,2419.6,2418.9,10.0198]
[1747603720442,13.91582,2419.6,2419.1,0.82634]
[1747603720642,13.9158,2419.6,2419.1,0.82634]
[1747603721041,4.6988,2419.6,2419.0,1.3552]
[1747603721234,9.215,2419.5,2419.0,1.3552]
[1747603721432,4.6988,2419.6,2419.1,0.82633]
[1747603721738,9.215,2419.5,2419.1,0.82633]
[1747603722140,12.273,2419.5,2419.1,0.82633]
[1747603722541,13.09922,2419.5,2419.1,0.82633]
[1747603722735,3.058,2419.5,2419.0,1.3552]
[1747603723041,3.058,2419.5,2419.1,1.58993]
[1747603723042,9.213,2419.4,2419.1,1.58993]
[1747603723235,9.213,2419.4,2419.2,2.1815]
[1747603723435,9.213,2419.4,2419.3,1.3552]
[1747603724333,3.2078,2419.7,2419.3,2.18147]
[1747603724528,10.03818,2419.6,2419.4,0.7999]
[1747603725143,13.09618,2419.6,2419.4,0.7999]
[1747603726233,10.03818,2419.6,2419.4,0.7999]
[1747603726539,9.212,2419.6,2419.4,0.7999]
[1747603727141,10.03819,2419.6,2419.4,0.7999]
[1747603727340,13.09619,2419.6,2419.4,0.7999]
[1747603727538,12.27,2419.6,2419.4,0.7999]
[1747603727751,0.82623,2419.5,2419.3,9.217]
[1747603728136,3.88423,2419.5,2419.3,9.217]
[1747603728641,3.058,2419.5,2419.3,9.217]
[1747603728842,1.375,2419.4,2419.3,9.217]
[1747603730144,4.433,2419.4,2419.3,9.217]
[1747603730447,5.2414,2419.4,2419.3,9.217]
[1747603732345,2.1834,2419.4,2419.3,10.38073867]
[1747603732547,2.1834,2419.4,2419.3,9.55445867]
[1747603733049,2.1834,2419.4,2419.3,10.90915867]
[1747603733545,2.1834,2419.4,2419.3,9.55445867]
[1747603735450,2.1834,2419.4,2419.3,0.33745867]
[1747603735855,2.9405,2419.4,2419.3,0.33745867]
[1747603736150,5.9985,2419.4,2419.3,0.33745867]
[1747603738152,2.9405,2419.4,2419.3,0.33745867]
[1747603738543,3.76675,2419.4,2419.3,0.33745867]
[1747603739040,10.03255,2419.4,2419.3,0.33745867]
[1747603740550,9.2063,2419.4,2419.3,0.33745867]
[1747603741055,10.03255,2419.4,2419.3,0.33745867]
[1747603741349,6.97455,2419.4,2419.3,0.33745867]
[1747603746357,15.3343,2419.4,2419.3,0.33745867]
[1747603746557,16.16055,2419.4,2419.3,0.33745867]
[1747603747456,6.97455,2419.4,2419.3,0.33745867]
[1747603747756,16.15855,2419.4,2419.3,0.33745867]
[1747603747955,15.3323,2419.4,2419.3,0.33745867]
[1747603748153,12.1245,2419.4,2419.3,0.33745867]
[1747603751960,2.9405,2419.4,2419.3,1.16373867]
[1747603752159,12.1195,2419.4,2419.3,0.33745867]
[1747603752457,11.3624,2419.4,2419.3,0.33745867]
[1747603754055,2.1834,2419.4,2419.3,1.16373867]
[1747603754255,11.3594,2419.4,2419.3,0.33745867]
[1747603754457,11.3594,2419.4,2419.3,1.16373867]
[1747603754656,11.3594,2419.4,2419.3,0.33745867]
[1747603756456,2.1834,2419.4,2419.3,0.33745867]
[1747603757862,1.375,2419.4,2419.3,1.16373867]
[1747603758062,1.5301,2419.6,2419.3,0.33745867]
[1747603758265,1.3399,2419.5,2419.4,0.33745867]
[1747603759064,1.3399,2419.5,2419.4,1.09775867]
[1747603759266,1.3399,2419.5,2419.4,5.46105867]
[1747603760269,1.3399,2419.5,2419.4,6.28730867]
[1747603760772,1.3399,2419.5,2419.4,5.46105867]
[1747603761260,3.2078,2419.7,2419.4,19.64205867]
[1747603761458,0.741,2420.1,2419.7,0.82612]
[1747603761459,2.1303,2420.0,2419.7,0.82612]
[1747603761655,2.1303,2420.0,2419.9,0.82608]
[1747603761865,1.3725,2420.0,2419.8,2.2091]
[1747603762060,1.3725,2420.0,2419.9,2.59823867]
[1747603762266,9.165,2420.1,2420.0,0.82604]
[1747603762473,9.165,2420.1,2420.0,1.4347]
[1747603763063,9.165,2420.1,2420.0,1.77215867]
[1747603763270,9.165,2420.1,2420.0,4.83015867]
[1747603763467,8.92819586,2420.2,2420.1,0.82601]
[1747603763667,8.92819586,2420.2,2420.1,2.18061]
[1747603763968,8.92819586,2420.2,2420.1,2.92711]
[1747603764166,8.92819586,2420.2,2420.0,3.39545867]
[1747603764373,1.3084,2420.1,2420.0,3.058]
[1747603764663,1.3084,2420.1,2420.0,3.39756037]
[1747603765469,3.2078,2420.2,2420.0,3.39756037]
[1747603765870,3.2078,2420.2,2420.1,1.3546]
[1747603766067,3.2078,2420.2,2420.1,1.69416037]
[1747603766278,2.8696683,2420.4,2420.1,8.22686037]
[1747603766279,2.0437483,2420.4,2420.1,8.22686037]
[1747603766471,2.0437483,2420.4,2420.2,1.3402]
[1747603766775,2.0437483,2420.4,2420.3,0.33956037]
[1747603767170,4.6231,2420.5,2420.3,3.39756037]
[1747603767371,4.6231,2420.5,2420.4,0.33956037]
[1747603767676,4.03367,2420.5,2420.4,0.33956037]
[1747603767973,3.2078,2420.5,2420.4,0.33956037]
[1747603768272,4.03367,2420.5,2420.4,0.33956037]
[1747603770177,3.2078,2420.5,2420.4,0.33956037]
[1747603770568,4.03367,2420.5,2420.4,0.33956037]
[1747603771874,0.826,2420.2,2419.9,9.89]
[1747603772176,0.7364,2420.1,2419.9,9.89]
[1747603772473,0.7364,2420.1,2420.0,0.33892391]
[1747603773171,0.7364,2420.1,2419.5,0.8262]
[1747603773365,0.7364,2420.1,2419.6,0.7443]
[1747603773366,0.82607,2420.0,2419.6,0.7443]
[1747603773563,0.82607,2420.0,2419.7,1.3552]
[1747603773765,1.5076,2420.1,2419.3,13.44956382]
[1747603773965,0.82607,2420.0,2419.7,0.7443]
[1747603775673,1.5076,2420.1,2419.8,0.12912919]
[1747603775674,10.6536,2420.1,2419.8,0.12912919]
[1747603775872,10.6536,2420.1,2419.7,0.7443]
[1747603776068,10.6536,2420.1,2419.8,1.49353091]
[1747603776273,10.6536,2420.1,2419.9,0.1291297]
[1747603776467,10.6536,2420.1,2419.8,1.3644]
[1747603776669,10.6536,2420.1,2419.9,0.12913125]
[1747603776867,10.6536,2420.1,2419.8,1.3644]
[1747603777067,4.12832,2421.2,2420.0,3.2078]
[1747603777068,9.144,2421.2,2420.0,3.2078]
[1747603777275,0.7113,2421.0,2420.3,3.2078]
[1747603777482,0.7113,2421.0,2420.5,0.82586]
[1747603777483,10.68102,2421.0,2420.5,0.82586]
[1747603777672,10.68102,2421.0,2420.6,1.49353108]
[1747603777868,10.68102,2421.0,2420.6,1.3644]
[1747603778274,0.7113,2421.0,2420.6,1.3644]
[1747603778577,9.143,2420.9,2420.6,1.3644]
[1747603778980,10.4444,2420.9,2420.6,1.3644]
[1747603779671,4.03341,2421.3,2420.6,1.3644]
[1747603779879,10.4424,2421.2,2420.7,0.95486094]
[1747603780173,10.4424,2421.2,2420.8,1.3454]
[1747603780373,1.3014,2421.2,2420.8,1.3454]
[1747603780583,9.14,2421.1,2420.8,2.17114]
[1747603781077,9.14,2421.1,2420.8,1.3454]
[1747603781278,9.14,2421.1,2420.8,4.4034]
[1747603781580,1.3014,2421.2,2420.8,4.4034]
[1747603781581,3.2078,2421.3,2420.8,4.4034]
[1747603781774,13.7573,2421.3,2420.9,9.98277172]
[1747603781975,13.7573,2421.3,2421.0,1.3747]
[1747603782175,13.7563,2421.3,2421.0,4.4327]
[1747603782979,13.7563,2421.3,2421.0,5.2051]
[1747603783278,3.2078,2421.3,2421.0,5.2051]
[1747603783488,1.4105,2421.2,2421.0,6.0308]
[1747603783779,3.9657,2421.6,2421.0,6.0308]
[1747603783780,12.3438,2421.6,2421.3,0.8256]
[1747603784080,3.2078,2421.6,2421.4,1.3747]
[1747603785077,1.3848,2421.5,2421.4,4.4327]
[1747603785279,6.54585586,2421.8,2421.4,3.058]
[1747603785482,2.21029,2421.7,2421.4,4.4566]
[1747603785980,0.7511,2421.6,2421.5,0.3365104]
[1747603786181,0.7511,2421.6,2421.5,4.7931104]
[1747603786480,2.1359,2421.6,2421.5,4.7931104]
[1747603787482,3.2078,2421.9,2421.5,4.7931104]
[1747603787682,1.2932,2421.8,2421.6,0.3365104]
[1747603787983,1.2932,2421.8,2421.5,4.4566]
[1747603788479,1.2932,2421.8,2421.5,5.28213]
[1747603788780,1.2932,2421.8,2421.5,4.4566]
[1747603788978,1.2932,2421.8,2421.5,5.28212]
[1747603789173,1.2932,2421.8,2421.5,5.28213]
[1747603789479,1.2932,2421.8,2421.6,0.3363239]
[1747603789679,1.2932,2421.8,2421.6,1.7338239]
[1747603789878,1.2932,2421.8,2421.7,9.4743239]
[1747603790074,53.15202792,2422.6,2421.7,9.60333592]
[1747603790075,0.30492355,2422.4,2421.7,9.60333592]
[1747603790383,1.2932,2422.3,2422.1,3.2078]
[1747603790679,0.30492355,2422.4,2422.3,0.82526]
[1747603790870,0.30492355,2422.4,2422.3,10.42758716]
[1747603791182,0.30492355,2422.4,2422.3,4.34858716]
[1747603791477,10.1933652,2423.1,2422.3,25.6163507]
[1747603791680,10.1933652,2423.1,2422.6,4.03296]
[1747603791881,1.44459586,2422.7,2422.6,13.28696326]
[1747603792175,10.1933652,2423.1,2422.6,13.1062961]
[1747603792375,10.1933652,2423.1,2423.0,4.03282]
[1747603792583,10.1933652,2423.1,2423.0,22.42382326]
[1747603792875,10.1933652,2423.1,2423.0,17.69091598]
[1747603793075,10.1933652,2423.1,2423.0,18.29882326]
[1747603793278,10.1933652,2423.1,2423.0,21.69314716]
[1747603793582,10.1933652,2423.1,2423.0,6.6021239]
[1747603793776,10.1933652,2423.1,2423.0,15.86506233]
[1747603793979,10.1933652,2423.1,2423.0,15.7361239]
[1747603794180,2.0437483,2423.1,2423.0,6.6021239]
[1747603794684,1.3612,2423.3,2423.0,6.6021239]
[1747603794883,0.82497,2423.2,2423.0,6.6021239]
[1747603795078,1.3297,2423.1,2423.0,6.2658]
[1747603795382,1.3297,2423.1,2423.0,3.2078]
[1747603795879,1.3297,2423.1,2423.0,3.5522992]
[1747603796182,10.4507,2423.1,2423.0,0.3444992]
[1747603796875,10.4487,2423.1,2423.0,0.3444992]
[1747603797075,10.4487,2423.1,2423.0,3.4024992]
[1747603797284,1.3297,2423.1,2423.0,3.4024992]
[1747603797581,10.4487,2423.1,2423.0,3.4024992]
[1747603797975,11.27369,2423.1,2423.0,3.4024992]
[1747603798176,11.27369,2423.1,2423.0,0.3444992]
[1747603798482,0.82502,2423.0,2422.9,3.2078]
[1747603798783,0.82507,2422.9,2422.5,12.3408]
[1747603798980,1.343,2422.8,2422.6,0.34444329]
[1747603799280,1.343,2422.8,2422.7,0.34444329]
[1747603799876,2.16809,2422.8,2422.7,0.34444329]
[1747603800076,2.88779,2422.8,2422.7,0.34444329]
[1747603800882,12.00482,2422.8,2422.5,3.2078]
[1747603801074,0.82512,2422.7,2422.5,3.2078]
[1747603801274,1.4271,2422.6,2422.5,3.2078]
[1747603801484,1.4271,2422.6,2422.5,3.55231247]
[1747603802182,10.5441,2422.6,2422.5,3.55231247]
[1747603802788,1.4271,2422.6,2422.5,3.55231247]
[1747603803080,10.5431,2422.6,2422.5,3.55231247]
[1747603803482,0.82492,2423.3,2422.5,8.55231247]
[1747603803688,1.3932,2423.0,2422.9,3.2078]
[1747603803879,1.3932,2423.0,2422.9,4.03286]
[1747603804183,1.3932,2423.0,2422.9,4.37737247]
[1747603804782,0.7608,2423.3,2422.9,3.55231247]
[1747603805081,1.3932,2423.2,2423.0,10.30151247]
[1747603805284,1.3932,2423.2,2423.1,0.34451247]
[1747603806182,1.60349,2423.4,2423.1,0.34451247]
[1747603806183,3.2078,2424.0,2423.1,0.34451247]
[1747603806385,0.82472,2423.9,2423.5,3.2078]
[1747603806573,1.3668,2423.9,2423.5,3.2078]
[1747603806772,1.3668,2423.9,2423.5,4.03265]
[1747603806986,10.4808,2423.9,2423.6,0.82478]
[1747603807479,1.3668,2423.9,2423.6,0.82479]
[1747603807686,10.4808,2423.9,2423.7,1.16929247]
[1747603807893,1.3668,2423.9,2423.8,0.82475]
[1747603808076,1.3668,2423.9,2423.8,13.16355]
[1747603808384,1.5004,2424.4,2423.9,0.82469]
[1747603808576,1.3668,2424.3,2424.1,3.2078]
[1747603809386,1.3668,2424.3,2424.1,12.3378]
[1747603809578,1.3668,2424.3,2424.2,0.34451247]
[1747603811980,6.3668,2424.3,2423.8,3.2078]
[1747603812189,4.4248,2424.3,2423.5,3.2078]
[1747603812488,4.4248,2424.3,2423.9,0.82472]
[1747603812489,9.11,2424.2,2423.9,0.82472]
[1747603812792,1.4217,2424.1,2423.8,4.03253]
[1747603813085,1.4217,2424.1,2423.8,3.2078]
[1747603815785,2.24638,2424.1,2423.8,3.2078]
[1747603815985,1.4217,2424.1,2423.8,3.2078]
[1747603817193,4.4797,2424.1,2423.8,3.2078]
[1747603817595,4.4797,2424.1,2423.7,0.82478]
[1747603817783,4.4797,2424.1,2423.8,0.12891492]
[1747603817987,4.4797,2424.1,2423.6,9.93479]
[1747603818183,5.30436,2424.1,2423.7,0.12891473]
[1747603818485,5.30436,2424.1,2423.8,0.12891473]
[1747603818687,4.4797,2424.1,2423.5,12.3178]
[1747603818889,0.82476,2423.8,2423.6,0.12892103]
[1747603819089,2.0,2423.7,2423.2,12.3178]
[1747603819291,2.6892,2423.7,2423.3,0.1289366]
[1747603819492,0.82491,2423.4,2423.2,3.2078]
[1747603819697,11.22512,2423.3,2423.1,1.21256382]
[1747603819899,10.4002,2423.3,2423.1,1.21256382]
[1747603820197,0.82495,2423.2,2423.1,1.21256382]
[1747603820396,1.2912,2423.2,2423.1,1.34152648]
[1747603821100,9.3492,2423.2,2423.1,1.34152648]
[1747603821297,0.82506,2422.9,2422.8,5.62223584]
[1747603821491,9.158,2422.9,2422.6,3.20629803]
[1747603821696,0.82511,2422.8,2422.6,3.20629803]
[1747603822095,3.88311,2422.8,2422.6,3.20629803]
[1747603822390,0.82512,2422.7,2422.3,3.2078]
[1747603822587,3.058,2422.8,2422.3,3.2078]
[1747603822792,0.82514,2422.7,2422.3,3.2078]
[1747603823000,3.058,2422.8,2422.3,3.2078]
[1747603823201,3.2078,2422.5,2422.1,1.058]
[1747603823398,9.145,2422.4,2422.1,1.058]
[1747603824101,12.203,2422.4,2422.1,1.058]
[1747603824301,3.058,2422.4,2422.3,0.82526]
[1747603824601,3.058,2422.4,2422.3,0.33939083]
[1747603824802,3.058,2422.4,2422.3,1.73979083]
[1747603825595,3.058,2422.4,2422.3,2.56505083]
[1747603825801,3.058,2422.4,2422.3,1.73979083]
[1747603826895,3.058,2422.4,2422.3,2.56505083]
[1747603827389,1.3513,2422.5,2422.4,0.82523]
[1747603827594,3.058,2422.6,2422.3,0.33939083]
[1747603827790,1.3722,2422.4,2422.3,0.82524]
[1747603828099,3.058,2422.6,2422.3,2.19374]
[1747603828301,3.058,2422.6,2422.3,1.3685]
[1747603828495,3.058,2422.6,2422.3,2.19373]
[1747603828706,1.3722,2422.5,2422.3,2.19373]
[1747603828898,1.3722,2422.5,2422.4,0.82523]
[1747603829204,3.058,2422.5,2422.4,2.53248138]
[1747603830096,1.3722,2422.7,2422.4,2.53248138]
[1747603830407,1.3722,2422.7,2422.5,0.82518]
[1747603830598,1.3722,2422.7,2422.5,1.16393138]
[1747603830798,1.3722,2422.7,2422.5,2.56323138]
[1747603830997,3.7125,2424.2,2423.0,0.82502]
[1747603831299,3.7125,2424.2,2424.1,0.82465]
[1747603831495,3.7125,2424.2,2424.1,10.43665]
[1747603831702,10.9332,2425.0,2424.7,0.82442]
[1747603831903,10.9332,2425.0,2424.8,0.33875138]
[1747603832604,0.08247762,2424.9,2424.8,0.33875138]
[1747603832913,0.08247762,2424.9,2424.8,1.16316138]
[1747603833505,0.08247762,2424.9,2424.8,2.48726138]
[1747603834106,0.08247762,2424.9,2424.8,1.66285138]
[1747603834404,0.08247762,2424.9,2424.8,1.16316138]
[1747603835002,0.08247762,2424.9,2424.8,2.48726138]
[1747603836805,0.4123,2425.2,2425.1,0.82431]
[1747603837003,0.49476742,2425.2,2425.1,18.76896092]
[1747603837204,0.49476742,2425.2,2425.1,13.76893462]
[1747603837404,0.08246742,2425.2,2425.1,14.107686]
[1747603837602,3.54150783,2426.6,2425.2,2.06068]
[1747603837802,2.23557324,2426.5,2426.0,4.03178]
[1747603838102,0.08242664,2426.4,2426.0,4.03179]
[1747603838308,0.08242664,2426.4,2426.1,1.16270138]
[1747603838510,1.3293,2426.3,2426.1,0.33875138]
[1747603838700,1.3293,2426.3,2426.2,1.2959]
[1747603839304,1.3293,2426.3,2426.0,9.606]
[1747603839903,1.3293,2426.3,2425.8,0.82406]
[1747603840103,1.3293,2426.3,2425.8,10.9]
[1747603840104,2.56531,2426.3,2425.8,10.9]
[1747603840403,1.7414,2426.3,2425.8,11.72407]
[1747603840711,13.66775,2426.2,2425.7,3.2078]
[1747603841007,0.36796514,2428.0,2425.7,17.8138]
[1747603841208,26.75782725,2428.5,2427.4,3.2078]
[1747603841403,26.75782725,2428.5,2427.3,2.05891]
[1747603841404,1.3806,2428.4,2428.0,3.2078]
[1747603842515,21.68596258,2428.1,2427.7,3.2078]
[1747603842703,21.68596258,2428.1,2427.2,3.2078]
[1747603842704,2.7496,2428.0,2427.2,3.2078]
[1747603843512,0.82343,2427.7,2427.2,3.2078]
[1747603843701,12.3618,2427.6,2427.2,3.2078]
[1747603844313,12.3988,2427.6,2427.2,3.2078]
[1747603844511,1.3428,2427.6,2427.2,3.2078]
[1747603844811,1.3428,2427.6,2427.1,3.2078]
[1747603845012,12.4568,2427.6,2427.1,3.2078]
[1747603845210,12.4568,2427.6,2427.2,1.3249]
[1747603845400,12.4568,2427.6,2427.2,2.14849]
[1747603845608,1.3428,2427.6,2427.2,1.3249]
[1747603846505,1.3428,2427.6,2427.3,0.82354]
[1747603846808,1.3428,2427.6,2427.4,3.2078]
[1747603847607,0.037,2427.6,2427.4,3.2078]
[1747603847811,1.3374,2427.5,2427.4,3.2078]
[1747603848713,1.3374,2427.5,2427.4,4.03133]
[1747603849010,1.3374,2427.5,2427.4,3.2078]
[1747603849207,1.3374,2427.5,2427.4,4.03133]
[1747603850508,1.3374,2427.5,2427.4,3.2078]
[1747603850709,1.3374,2427.5,2427.4,4.03133]
[1747603851011,1.3374,2427.5,2427.4,3.2078]
[1747603851212,0.037,2427.6,2427.5,0.82349]
[1747603851612,1.2949,2427.8,2427.7,0.82343]
[1747603851915,3.2632,2427.9,2427.8,0.82339]
[1747603852211,12.4605,2428.3,2428.0,0.82332]
[1747603852404,12.4605,2428.3,2428.1,3.2078]
[1747603852926,1.3715,2428.3,2428.1,3.2078]
[1747603854314,0.33466391,2428.8,2428.1,3.2078]
[1747603854616,3.2942,2428.5,2428.4,3.2078]
[1747603854817,3.2942,2428.5,2428.4,5.33849]
[1747603855213,3.2942,2428.5,2428.4,4.5153]
[1747603855511,3.2942,2428.5,2428.4,5.33849]
[1747603856113,0.0426,2428.8,2428.4,7.5733]
[1747603856316,1.2917,2428.7,2428.5,11.084]
[1747603856912,1.2917,2428.7,2428.4,18.6553]
[1747603857118,1.2917,2428.7,2428.2,3.2078]
[1747603857119,0.8232,2428.4,2428.2,3.2078]
[1747603857418,1.2917,2428.3,2427.9,3.2078]
[1747603857717,2.11493,2428.3,2427.9,3.2078]
[1747603858020,1.2917,2428.3,2427.9,3.2078]
[1747603858220,0.7437,2428.2,2427.3,3.2078]
[1747603858515,0.82337,2427.9,2427.6,3.2078]
[1747603858820,1.2953,2427.8,2427.6,3.2078]
[1747603859620,0.7437,2428.2,2427.6,3.2078]
[1747603859816,2.9332,2428.5,2428.0,3.2078]
[1747603860019,4.2285,2428.5,2428.4,3.2078]
[1747603860427,2.9332,2428.5,2428.4,5.73666353]
[1747603861113,2.9332,2428.5,2428.4,10.73666353]
[1747603861319,2.95212354,2428.5,2428.4,10.73666353]
[1747603862423,2.95212354,2428.5,2428.4,5.73666353]
[1747603862715,2.95212354,2428.5,2428.4,4.91347353]
[1747603862922,2.95212354,2428.5,2428.4,16.81666353]
[1747603864417,2.95212354,2428.5,2428.4,16.94532514]
[1747603864917,3.2078,2430.1,2428.4,10.04213514]
[1747603865118,1.3596,2430.0,2429.8,3.2078]
[1747603865422,1.3596,2430.0,2429.9,0.82268]
[1747603865813,1.3596,2430.0,2429.8,4.03049]
[1747603866014,1.3596,2430.0,2429.9,0.33337353]
[1747603867118,1.56856,2430.3,2429.9,1.15603353]
[1747603867119,0.746,2430.3,2429.9,1.15603353]
[1747603867320,1.2958,2430.2,2430.1,3.2078]
[1747603867715,1.2958,2430.2,2430.1,3.54117353]
[1747603868617,1.6825,2430.3,2430.1,3.54117353]
[1747603869022,1.2958,2430.2,2430.1,3.54117353]
[1747603869519,1.2958,2430.2,2430.1,4.36378353]
[1747603869722,1.6825,2430.3,2430.1,3.54117353]
[1747603870025,1.6825,2430.3,2430.2,1.365]
[1747603870216,1.6825,2430.3,2430.2,0.33337353]
[1747603870522,1.2958,2430.4,2430.2,0.33337353]
[1747603870722,1.2958,2430.4,2430.3,0.33337353]
[1747603874924,3.2078,2432.1,2430.4,2.05622]
[1747603875216,2.0958,2431.9,2431.8,3.2078]
[1747603875427,11.899,2432.6,2431.8,3.2078]
[1747603875621,11.899,2432.6,2432.2,3.2078]
[1747603875622,2.0958,2432.6,2432.2,3.2078]
[1747603876016,2.0958,2432.6,2431.9,19.90049331]
[1747603876218,5.1538,2432.6,2432.3,3.2078]
[1747603876413,5.97558,2432.6,2432.3,3.2078]
[1747603876626,5.1538,2432.6,2432.3,3.2078]
[1747603877022,5.97558,2432.6,2432.4,0.33337353]
[1747603877224,3.058,2432.6,2432.5,0.32475937]
[1747603877524,3.058,2432.6,2432.5,1.14655937]
[1747603877727,3.058,2432.6,2432.5,0.32475937]
[1747603878023,3.87977,2432.6,2432.5,0.6581329]
[1747603878223,3.058,2432.6,2432.3,3.2078]
[1747603878529,1.301,2432.5,2432.3,3.2078]
[1747603878825,1.301,2432.5,2432.0,3.2078]
[1747603879120,0.82188,2432.3,2432.0,3.2078]
[1747603879327,1.3583,2432.2,2432.0,3.2078]
[1747603879928,2.18021,2432.2,2432.0,3.2078]
[1747603880125,16.5263,2432.2,2432.0,3.2078]
[1747603880525,17.34821,2432.2,2432.0,3.2078]
[1747603880726,16.5263,2432.2,2432.0,3.2078]
[1747603881033,4.4163,2432.2,2432.0,3.2078]
[1747603881327,1.3583,2432.2,2432.0,3.2078]
[1747603884331,1.3583,2432.2,2432.1,0.82194]
[1747603884521,10.94396,2434.4,2432.1,0.82194]
[1747603884522,12.068,2433.3,2432.1,13.1657]
[1747603884829,1.4191,2432.8,2432.6,3.2078]
[1747603885126,1.4191,2432.8,2432.7,0.82173]
[1747603885327,0.8215,2433.4,2432.6,15.0708]
[1747603885533,1.3682,2433.1,2432.7,1.3195]
[1747603885730,1.3682,2433.1,2433.0,3.2078]
[1747603886234,0.28749934,2433.7,2433.0,3.2078]
[1747603886422,1.3682,2433.6,2433.5,3.2078]
[1747603887022,0.28749934,2433.7,2433.5,3.2078]
[1747603887227,1.3682,2433.6,2433.5,3.2078]
[1747603887428,0.28749934,2433.7,2433.5,3.2078]
[1747603887728,0.0249,2433.9,2433.5,3.2078]
[1747603887729,5.68996258,2435.5,2433.6,13.63286963]
[1747603888036,1.3682,2434.5,2434.2,3.2078]
[1747603888225,0.82118,2434.4,2434.2,3.2078]
[1747603888429,0.82118,2434.4,2433.9,3.2078]
[1747603888430,0.82123,2434.2,2433.9,3.2078]
[1747603888630,1.3332,2434.1,2433.9,3.2078]
[1747603888831,0.82129,2434.0,2433.9,3.2078]
[1747603889033,1.3332,2434.1,2433.9,3.2078]
[1747603889727,3.87929,2434.0,2433.9,3.2078]
[1747603889929,0.82135,2433.9,2433.6,3.2078]
[1747603890129,1.3332,2433.9,2433.6,3.2078]
[1747603890337,4.3912,2433.9,2433.6,3.2078]
[1747603890834,4.3912,2433.9,2433.7,1.71172003]
[1747603891132,4.3912,2433.9,2433.8,0.32132003]
[1747603891631,3.058,2433.9,2433.8,0.32132003]
[1747603892235,3.058,2433.9,2433.8,1.14268003]